bitfinex/quotes_ETHUSD_20240710
["timestamp","ask_amount","ask_price","bid_price","bid_amount"]
[1720587260554,1.00287305,3120.1,3119.4,2.3351]
[1720587260726,1.00287305,3120.0,3119.4,2.3351]
[1720587262366,1.00287305,3119.9,3119.4,2.3351]
[1720587262533,1.00287305,3119.8,3119.4,2.3351]
[1720587262719,1.23687676,3119.8,3119.4,2.3351]
[1720587263120,1.00287305,3119.8,3119.4,2.3351]
[1720587263365,1.00287305,3120.0,3119.4,2.3351]
[1720587266566,0.33574616,3119.9,3119.4,2.39921005]
[1720587266784,0.33574616,3119.9,3119.6,2.3671]
[1720587267573,0.33574616,3119.9,3119.6,2.4311996]
[1720587267735,0.33574616,3119.9,3119.6,2.3671]
[1720587269370,0.33574616,3119.9,3119.6,2.43119758]
[1720587269859,0.33574616,3119.9,3119.6,2.62850758]
[1720587270066,0.33574616,3119.9,3119.7,2.3671]
[1720587272447,1.33861921,3119.9,3119.7,2.3671]
[1720587272868,0.33574616,3119.9,3119.7,2.3671]
[1720587273061,1.00287305,3119.8,3119.7,2.3671]
[1720587273243,1.33861921,3119.9,3119.7,2.3671]
[1720587274448,0.33574616,3119.9,3119.7,2.3671]
[1720587274879,1.33861921,3119.9,3119.7,2.3671]
[1720587275268,0.33574616,3119.9,3119.7,2.3671]
[1720587275470,1.33861921,3119.9,3119.7,2.3671]
[1720587276263,0.33574616,3119.9,3119.7,2.3671]
[1720587277452,1.11074504,3119.8,3119.7,2.3671]
[1720587278284,0.33574616,3119.9,3119.7,2.3671]
[1720587279780,1.11067942,3119.8,3119.7,2.3671]
[1720587280092,1.11067942,3119.8,3119.4,2.4283]
[1720587280263,0.33574616,3119.9,3119.4,2.4283]
[1720587280264,1.11067942,3119.7,3119.4,2.4283]
[1720587280462,1.11067942,3119.8,3119.4,2.4283]
[1720587281349,2.36132785,3119.8,3118.8,2.4283]
[1720587281553,2.1161393,3119.7,3118.8,2.4283]
[1720587281754,1.11067942,3119.6,3118.8,2.4283]
[1720587281953,2.1161393,3119.6,3118.8,2.4283]
[1720587282153,1.11067942,3119.5,3118.8,2.4283]
[1720587282385,0.33576195,3119.5,3118.8,2.4283]
[1720587282597,1.11083112,3119.4,3118.8,2.4283]
[1720587282817,0.33576195,3119.5,3118.8,2.4283]
[1720587283103,1.11085676,3119.4,3118.8,2.4283]
[1720587283291,0.33576195,3119.5,3118.8,2.4283]
[1720587283481,1.11085616,3119.4,3118.8,2.4283]
[1720587283791,0.33576195,3119.5,3118.8,2.4283]
[1720587283978,1.11083229,3119.4,3118.8,2.4283]
[1720587284184,0.33576195,3119.5,3118.8,2.4283]
[1720587284353,1.11083082,3119.4,3118.8,2.4283]
[1720587284557,0.33576195,3119.5,3118.8,2.4283]
[1720587284777,1.11083683,3119.4,3118.8,2.4283]
[1720587284980,0.33576195,3119.5,3118.8,2.4283]
[1720587285186,1.11085129,3119.4,3118.8,2.4283]
[1720587285417,0.33576195,3119.5,3118.8,2.4283]
[1720587285871,1.11084496,3119.4,3118.8,2.4283]
[1720587286049,0.33576195,3119.5,3118.8,2.4283]
[1720587286249,1.1108412,3119.4,3118.8,2.4283]
[1720587286492,0.33576195,3119.5,3118.8,2.4283]
[1720587286652,1.11086585,3119.4,3118.8,2.4283]
[1720587287390,2.11682745,3119.4,3118.8,2.4283]
[1720587287689,1.11086585,3119.3,3118.8,2.4283]
[1720587287997,2.11682745,3119.3,3118.8,2.4283]
[1720587288180,1.11086585,3119.2,3118.8,2.4283]
[1720587288697,1.11086585,3119.1,3118.8,2.4283]
[1720587289228,1.0059616,3119.4,3118.8,2.4283]
[1720587289432,2.11692726,3119.3,3118.8,2.4283]
[1720587289721,1.11096566,3119.2,3118.8,2.4283]
[1720587289882,1.0059616,3119.4,3118.8,2.4283]
[1720587289883,1.11096566,3119.1,3118.8,2.4283]
[1720587290082,1.0059616,3119.4,3118.8,2.4283]
[1720587290325,1.11092989,3119.3,3118.8,2.4283]
[1720587290493,1.11092989,3119.2,3118.8,2.4283]
[1720587290693,1.0059616,3119.4,3118.8,2.4283]
[1720587290929,2.11685709,3119.3,3118.8,2.4283]
[1720587291225,1.11089549,3119.2,3118.8,2.4283]
[1720587291418,1.0059616,3119.4,3118.8,2.4283]
[1720587291419,1.11089549,3119.3,3118.8,2.4283]
[1720587292025,1.0059616,3119.2,3118.8,2.4283]
[1720587292227,0.33576195,3119.5,3118.8,2.4283]
[1720587292534,1.00745889,3119.2,3118.8,2.4283]
[1720587292730,1.11095015,3119.1,3118.8,2.4283]
[1720587292931,1.34379767,3119.3,3118.8,2.4283]
[1720587292932,1.00784825,3119.3,3118.8,2.4283]
[1720587293127,1.11092032,3119.2,3118.8,2.4283]
[1720587293310,1.00784825,3119.2,3118.8,2.4283]
[1720587293991,1.00784825,3119.3,3119.1,2.56483]
[1720587294196,0.33576195,3119.5,3119.2,2.4905]
[1720587294430,0.33576195,3119.5,3119.3,0.0641076]
[1720587294634,0.33576195,3119.5,3119.2,2.4905]
[1720587296401,0.33576195,3119.5,3119.2,2.55460816]
[1720587296808,1.3436102,3119.5,3119.2,2.55460816]
[1720587297009,1.3436102,3119.5,3119.2,2.4905]
[1720587297323,1.00784825,3119.3,3119.2,2.4905]
[1720587297527,1.00784825,3119.4,3119.2,2.4905]
[1720587298848,0.33576195,3119.5,3119.2,2.55461003]
[1720587299058,0.33576195,3119.5,3119.2,5.11936003]
[1720587300344,0.33576195,3119.5,3118.6,2.4306]
[1720587300558,1.34575681,3118.7,3117.9,2.56582]
[1720587300706,1.0096745,3118.4,3117.9,2.23002]
[1720587300912,1.0096745,3118.3,3117.9,2.23002]
[1720587301119,1.0096745,3118.3,3117.8,2.4306]
[1720587301424,1.0096745,3118.3,3117.3,2.4306]
[1720587301425,1.34575681,3117.9,3117.3,2.4306]
[1720587301610,1.00992455,3117.8,3117.3,2.4306]
[1720587301953,1.00994249,3117.7,3117.3,2.4306]
[1720587302161,1.00994249,3117.8,3117.3,2.4306]
[1720587302449,1.68323749,3118.1,3117.3,2.4306]
[1720587302450,1.00994249,3117.9,3117.3,2.4306]
[1720587302653,1.00994249,3118.0,3117.3,2.4306]
[1720587302822,1.00994249,3118.0,3117.3,5.4306]
[1720587304315,1.00994249,3117.9,3117.3,5.4306]
[1720587304510,2.01909834,3118.2,3117.3,5.4306]
[1720587304511,0.33586085,3118.2,3117.3,5.4306]
[1720587304719,1.00789231,3118.0,3117.4,3.0]
[1720587304955,1.00789231,3117.7,3117.3,2.4306]
[1720587305123,1.00789231,3117.7,3116.6,2.4848]
[1720587305325,1.00789231,3117.6,3116.6,2.4848]
[1720587305557,1.00789231,3117.7,3116.6,2.4848]
[1720587305913,0.16,3117.6,3116.6,2.4848]
[1720587306113,1.16789231,3117.6,3116.6,5.05168]
[1720587306617,0.16,3117.6,3116.7,3.0]
[1720587306960,1.34385641,3117.5,3116.1,2.2821]
[1720587307170,1.00789231,3117.4,3116.1,2.2821]
[1720587307368,1.00789231,3117.3,3116.1,2.2821]
[1720587307653,1.34385641,3117.5,3116.1,2.2821]
[1720587307654,1.00789231,3117.5,3116.1,2.2821]
[1720587307984,0.25117487,3117.4,3116.1,2.2821]
[1720587308157,1.00789231,3117.3,3116.1,2.2821]
[1720587308655,3.0,3117.3,3116.1,2.2821]
[1720587308820,1.00789231,3117.2,3116.1,2.2821]
[1720587309322,1.00789231,3117.1,3116.1,2.2821]
[1720587309520,0.45950313,3117.2,3116.1,2.2821]
[1720587310560,0.45950313,3117.2,3115.5,5.4598]
[1720587310722,4.00789231,3117.3,3115.5,5.4598]
[1720587310723,0.44673954,3117.1,3115.5,5.4598]
[1720587311057,3.25117487,3117.4,3115.5,5.4598]
[1720587311263,0.55,3117.3,3115.5,5.4598]
[1720587311421,0.55,3117.3,3115.5,8.0276]
[1720587315268,0.55,3117.3,3115.5,5.4598]
[1720587315499,2.2685,3117.2,3115.5,5.4598]
[1720587315780,0.28185,3117.1,3115.6,3.0]
[1720587315980,5.2685,3117.2,3115.6,3.0]
[1720587315981,3.0,3117.2,3115.9,2.846]
[1720587316145,3.0,3117.5,3116.1,2.4273]
[1720587316350,0.316,3117.4,3116.1,2.4273]
[1720587316538,0.16,3117.6,3116.1,2.4273]
[1720587317140,0.33593306,3117.5,3116.1,2.4273]
[1720587320286,0.16,3117.6,3116.2,0.0641695]
[1720587320445,0.16,3117.6,3116.7,2.56681]
[1720587320774,0.16,3117.6,3116.8,2.4891]
[1720587321684,0.16,3117.6,3116.1,2.4891]
[1720587321847,0.6885,3117.6,3116.1,2.4891]
[1720587322388,0.55,3117.5,3116.1,2.4891]
[1720587323591,2.846,3117.4,3116.1,2.4891]
[1720587323895,2.388,3117.2,3115.6,2.3002]
[1720587324221,0.55,3117.1,3115.6,2.3002]
[1720587324554,3.55,3117.1,3115.6,2.3002]
[1720587326084,3.0,3117.1,3115.8,2.56749]
[1720587326285,0.3396,3117.3,3115.9,2.399]
[1720587326452,0.3396,3117.3,3115.9,4.96647]
[1720587326801,0.3396,3117.3,3115.9,2.399]
[1720587327692,0.16,3117.6,3116.3,2.56714]
[1720587328059,0.16,3117.6,3116.4,2.63120239]
[1720587328269,0.16,3117.6,3116.5,2.3726]
[1720587328865,0.16,3117.6,3116.9,2.4984]
[1720587329115,0.16,3117.6,3117.0,0.06415267]
[1720587329859,0.16,3117.6,3117.2,2.4739]
[1720587330814,0.16,3117.6,3117.2,5.04023]
[1720587330983,0.16,3117.6,3117.3,2.63045306]
[1720587331179,0.16,3117.6,3117.3,2.56631]
[1720587331475,0.16,3117.6,3117.4,0.06414299]
[1720587331682,0.16,3117.6,3117.4,0.0641432]
[1720587331882,0.16,3117.6,3117.4,2.6303332]
[1720587332063,0.16,3117.6,3117.4,2.56619]
[1720587332467,0.16,3117.6,3117.2,5.04027]
[1720587332704,0.16,3117.6,3117.2,2.4739]
[1720587332897,0.16,3117.6,3117.2,5.4739]
[1720587333097,0.16,3117.6,3117.2,8.04028]
[1720587333607,0.16,3117.6,3117.2,5.4739]
[1720587333767,0.16,3117.6,3117.2,2.4739]
[1720587333970,0.16,3117.6,3117.2,5.0403]
[1720587335100,0.16,3117.6,3117.2,2.4739]
[1720587336305,0.16,3117.6,3117.2,5.0403]
[1720587337589,0.16,3117.6,3117.3,2.56632]
[1720587343386,0.16,3117.6,3117.2,5.04028]
[1720587343730,0.16,3117.6,3117.2,2.4739]
[1720587344600,0.16,3117.6,3117.2,5.04029]
[1720587344788,0.16,3117.6,3117.3,2.5663]
[1720587345799,0.16,3117.6,3117.5,2.56615]
[1720587346190,0.16,3117.6,3117.4,2.56623]
[1720587346687,0.16,3117.6,3117.3,2.5663]
[1720587347022,0.16,3117.6,3117.4,3.0]
[1720587347321,0.16,3117.6,3117.3,2.56632]
[1720587347629,0.16,3117.6,3117.4,3.0]
[1720587350732,0.16,3117.6,3117.2,8.0403]
[1720587350933,0.16,3117.6,3117.2,5.4739]
[1720587351135,0.16,3117.6,3116.7,4.92325]
[1720587352234,0.16,3117.6,3116.7,2.3565]
[1720587352398,1.16654828,3117.6,3116.3,2.3195]
[1720587352596,1.16654828,3117.6,3116.5,2.853]
[1720587352795,0.16,3117.6,3116.5,5.41994]
[1720587353048,0.16,3117.6,3116.6,2.56689]
[1720587353600,0.16,3117.6,3116.7,5.13354]
[1720587353834,0.16,3117.6,3117.0,4.92]
[1720587354000,0.16,3117.6,3117.3,2.853]
[1720587355097,0.16,3117.6,3117.4,0.06414636]
[1720587355554,0.16,3117.6,3117.5,0.0641434]
[1720587355704,0.16,3117.6,3117.5,2.6302934]
[1720587356047,0.16,3117.6,3117.5,2.56615]
[1720587356200,0.16,3117.6,3117.5,4.91965]
[1720587358914,0.16,3117.6,3117.5,4.98378715]
[1720587359533,0.15906154,3117.6,3117.5,4.98378715]
[1720587360557,0.15906154,3117.6,3117.5,8.09993715]
[1720587360766,0.15906154,3117.6,3117.5,11.09993715]
[1720587361630,1.0065045,3118.8,3118.0,2.5657]
[1720587362045,1.0065045,3118.8,3118.1,2.56566]
[1720587362240,1.342006,3119.0,3118.1,2.91712742]
[1720587362241,1.0065045,3119.0,3118.1,2.91712742]
[1720587362457,1.0065045,3119.2,3118.3,2.56544]
[1720587362668,1.0065045,3119.2,3118.4,0.06412272]
[1720587363328,2.2771,3119.3,3118.3,2.56544]
[1720587363329,1.0065045,3119.1,3118.3,2.56544]
[1720587363931,1.46906555,3119.2,3118.4,0.06412275]
[1720587364126,1.0065045,3119.2,3118.4,2.62953275]
[1720587365431,3.2836045,3119.3,3118.4,2.62953275]
[1720587365850,3.4436045,3119.3,3118.4,2.62953275]
[1720587366054,1.0065045,3119.2,3118.2,2.4475]
[1720587366274,3.92216555,3119.3,3118.2,5.01307]
[1720587366476,0.52641716,3119.2,3118.3,2.56548]
[1720587366689,0.52641716,3119.2,3118.2,2.4475]
[1720587366853,3.4436045,3119.3,3118.2,2.4475]
[1720587367193,3.4436045,3119.3,3118.4,2.56541]
[1720587368351,2.4371,3119.3,3118.4,2.56541]
[1720587369192,3.44271985,3119.3,3118.3,2.56549]
[1720587369349,3.44271985,3119.3,3118.2,2.4475]
[1720587369350,0.16,3119.3,3118.4,2.62952098]
[1720587369764,0.16,3119.3,3118.4,2.5654]
[1720587370395,1.00561985,3119.4,3118.4,2.5654]
[1720587370554,1.00561985,3119.3,3118.4,2.5654]
[1720587371489,1.00561985,3119.2,3118.4,2.62952098]
[1720587371793,1.00673684,3119.2,3118.4,2.62952098]
[1720587372307,1.00673684,3119.2,3118.2,5.01303]
[1720587372588,1.00673684,3119.1,3118.2,5.01303]
[1720587373504,1.00673684,3119.0,3118.2,5.01303]
[1720587373798,1.00673684,3119.0,3118.3,2.56548]
[1720587378174,1.00673684,3119.0,3118.2,2.4475]
[1720587378370,1.00743649,3119.0,3118.2,2.4475]
[1720587378574,1.00743649,3119.0,3118.2,5.01308]
[1720587378802,1.00739737,3119.0,3118.2,5.01308]
[1720587381308,1.00739737,3119.1,3118.2,5.01308]
[1720587381716,1.00739737,3119.1,3118.4,2.5654]
[1720587381717,1.00732502,3119.1,3118.4,2.5654]
[1720587382006,1.00732502,3119.1,3118.5,0.06412105]
[1720587382167,1.00732502,3119.2,3118.5,0.06412105]
[1720587382371,1.00732502,3119.2,3118.2,5.01308]
[1720587382571,1.00732502,3119.1,3118.2,5.01308]
[1720587382812,1.00732502,3119.1,3118.3,2.56549]
[1720587383016,1.00732502,3119.1,3118.4,2.5654]
[1720587383228,1.34310003,3119.3,3118.5,0.06412106]
[1720587383229,1.00732502,3119.2,3118.5,0.06412106]
[1720587384618,1.00732502,3119.2,3118.5,2.62939106]
[1720587384918,1.00732502,3119.3,3118.6,0.06412102]
[1720587385096,1.34310003,3119.5,3118.6,0.06412102]
[1720587385097,1.00732502,3119.4,3118.6,0.06412102]
[1720587386091,1.00732502,3119.5,3118.6,0.06412102]
[1720587386395,1.00732502,3119.5,3118.6,2.62935102]
[1720587386592,1.00732502,3119.5,3118.9,2.3375]
[1720587387185,1.00732502,3119.5,3118.8,2.56508]
[1720587387386,1.34310003,3119.6,3118.8,2.56508]
[1720587387387,1.00732502,3119.6,3118.8,2.56508]
[1720587387586,1.00732502,3119.5,3118.8,2.56508]
[1720587388510,2.3363,3120.0,3118.8,2.56508]
[1720587388700,1.00690426,3119.5,3118.8,2.56508]
[1720587389234,1.00690426,3119.5,3118.7,3.0]
[1720587389381,1.00690426,3119.5,3118.6,5.3375]
[1720587389587,1.00690426,3119.5,3118.6,7.90275]
[1720587390015,1.00690426,3119.4,3118.6,5.3375]
[1720587391197,1.00690426,3119.5,3118.6,7.96686655]
[1720587391827,1.00690426,3119.5,3118.6,7.90275]
[1720587392034,1.00690426,3119.4,3118.6,7.90275]
[1720587392411,1.00690426,3119.5,3118.6,7.90275]
[1720587392901,1.00690426,3119.4,3118.6,7.90275]
[1720587394103,1.00690426,3119.4,3118.6,2.3375]
[1720587394939,1.00690426,3119.3,3118.6,2.3375]
[1720587395232,1.00690426,3119.4,3118.6,2.3375]
[1720587395640,1.00690426,3119.3,3118.6,2.3375]
[1720587395845,1.00690426,3119.2,3118.6,2.3375]
[1720587397024,1.00690426,3119.3,3118.6,2.40161891]
[1720587397423,1.00690426,3119.2,3118.6,2.40161891]
[1720587398348,1.00690426,3119.2,3118.6,2.3375]
[1720587398510,1.00690426,3119.1,3118.6,2.3375]
[1720587398710,1.00690426,3119.0,3118.6,2.3375]
[1720587399524,1.34253902,3119.2,3118.6,2.3375]
[1720587399525,1.00690426,3118.9,3118.6,2.3375]
[1720587399727,1.00690426,3119.0,3118.6,2.3375]
[1720587400514,1.00690426,3118.9,3118.6,2.3375]
[1720587403315,1.00690426,3118.8,3118.6,2.3375]
[1720587405878,1.00690426,3118.7,3118.6,2.3375]
[1720587406255,1.00690426,3118.8,3118.6,2.3375]
[1720587406574,1.00690426,3118.7,3118.6,2.3375]
[1720587406775,1.00690426,3118.7,3118.6,3.5245]
[1720587407851,1.01087762,3118.7,3118.6,3.5245]
[1720587408488,1.34783683,3118.8,3118.6,3.5245]
[1720587408686,1.34783683,3118.7,3118.6,3.5245]
[1720587409094,1.34783683,3118.8,3118.6,3.5245]
[1720587409387,1.01091528,3118.7,3118.6,2.3375]
[1720587409593,1.01091528,3118.8,3118.6,3.5245]
[1720587409753,1.01091528,3118.8,3118.7,1.187]
[1720587410450,1.01091528,3118.9,3118.7,3.75217]
[1720587411411,6.17878571,3123.3,3118.7,3.75217]
[1720587411412,2.35866325,3119.2,3118.8,2.4871]
[1720587411609,1.01085568,3119.3,3119.1,2.56484]
[1720587411911,1.01085568,3119.4,3119.2,1.187]
[1720587412071,1.01085568,3119.4,3119.3,1.187]
[1720587412272,1.34780757,3119.6,3119.3,1.187]
[1720587412273,1.01085568,3119.5,3119.3,1.187]
[1720587412602,1.01085568,3119.5,3119.1,2.56484]
[1720587413697,1.01085568,3119.5,3119.2,2.56473]
[1720587414016,1.01085568,3119.6,3119.4,2.2869]
[1720587414218,1.34780757,3119.7,3119.4,2.2869]
[1720587414219,1.01085568,3119.7,3119.4,2.2869]
[1720587414420,2.4172,3120.4,3119.5,0.06410422]
[1720587414574,1.00993666,3119.8,3119.5,0.06410422]
[1720587415200,1.00993666,3119.8,3119.5,2.5645]
[1720587415406,1.00993666,3119.9,3119.5,2.5645]
[1720587415606,1.34658221,3120.0,3119.5,2.5645]
[1720587415607,1.00993666,3119.8,3119.5,2.5645]
[1720587416384,1.00993666,3119.9,3119.5,2.5645]
[1720587417499,1.00993666,3120.0,3119.7,2.848]
[1720587417673,1.00993666,3120.1,3119.8,0.06409852]
[1720587418298,1.00993666,3120.1,3119.7,5.41234]
[1720587419078,1.00993666,3120.1,3119.5,2.56449]
[1720587419275,1.00993666,3120.0,3119.5,2.56449]
[1720587419476,1.00993666,3120.1,3119.5,2.56449]
[1720587419924,1.008376,3120.1,3119.5,2.56449]
[1720587420789,1.00834763,3120.1,3119.5,2.56449]
[1720587421696,1.00834763,3120.2,3119.4,2.2869]
[1720587421895,1.00834763,3120.2,3119.5,0.55]
[1720587422191,1.00834763,3120.2,3119.5,3.55]
[1720587422431,1.00834763,3120.4,3120.1,5.412]
[1720587422646,9.47669526,3121.0,3120.1,5.412]
[1720587422647,1.00834763,3120.6,3120.1,5.412]
[1720587422795,1.00834763,3120.7,3120.1,5.412]
[1720587422992,1.34446351,3120.8,3119.5,3.55]
[1720587422993,1.00834763,3120.8,3120.5,2.848]
[1720587423290,10.48504289,3121.0,3120.5,2.848]
[1720587423291,1.00834763,3121.0,3120.5,2.848]
[1720587423491,1.00834763,3121.0,3120.1,2.848]
[1720587423720,1.00834763,3120.8,3120.0,2.4117]
[1720587423928,1.00834763,3120.6,3120.0,2.4117]
[1720587424659,1.00834763,3120.6,3119.8,5.56426]
[1720587424660,1.00834763,3120.6,3119.8,3.0]
[1720587424840,1.00834763,3120.5,3119.3,5.2178]
[1720587425053,1.00834763,3120.5,3119.0,7.47]
[1720587425054,3.40074763,3119.9,3119.0,9.8398]
[1720587425366,1.00834763,3119.7,3119.0,2.3698]
[1720587425768,1.00834763,3119.6,3119.0,4.93471]
[1720587425948,1.00834763,3119.7,3119.0,4.93471]
[1720587426466,1.00834763,3119.7,3119.0,4.99881782]
[1720587426620,1.00753561,3119.8,3119.0,4.99881782]
[1720587427021,1.0075301,3119.8,3119.0,4.99881782]
[1720587427347,1.0075301,3119.8,3119.1,3.11483]
[1720587427528,1.0075301,3119.9,3119.2,2.56474]
[1720587427733,1.0075301,3119.8,3119.2,2.56474]
[1720587428063,1.0075301,3119.8,3119.1,3.11479]
[1720587428295,1.0075301,3119.8,3119.0,2.3698]
[1720587428296,1.0075301,3119.8,3119.0,4.93471]
[1720587428575,1.0075301,3119.6,3118.9,2.848]
[1720587428750,1.0075301,3119.5,3118.9,2.848]
[1720587429122,1.0075301,3119.4,3118.9,2.848]
[1720587429317,1.0075301,3119.4,3118.6,5.3414]
[1720587429526,1.0075301,3119.4,3118.6,7.90663]
[1720587430069,1.00781421,3119.3,3118.6,5.3414]
[1720587430430,1.00781421,3119.2,3118.6,2.3414]
[1720587430750,1.00781421,3119.1,3118.6,2.3414]
[1720587434061,1.00781421,3119.1,3118.5,2.848]
[1720587434251,1.00781421,3119.0,3118.3,2.2711]
[1720587434559,1.00781421,3118.9,3118.3,2.2711]
[1720587434970,1.00781421,3118.9,3118.1,5.848]
[1720587434971,1.00781421,3118.8,3118.1,5.848]
[1720587435149,3.46269432,3118.7,3117.9,2.2711]
[1720587435367,1.00781421,3118.4,3117.7,2.848]
[1720587435526,1.00781421,3118.3,3117.7,2.848]
[1720587436553,1.00781421,3118.4,3117.7,2.848]
[1720587436785,0.53776817,3118.7,3117.7,2.848]
[1720587437084,1.00754692,3118.5,3117.7,2.848]
[1720587438684,1.00754692,3118.5,3117.5,5.02275]
[1720587438854,1.00754692,3118.4,3117.6,3.0]
[1720587439251,1.00754692,3118.5,3117.6,3.0]
[1720587439688,1.00685216,3118.5,3117.6,3.0]
[1720587440382,1.00685216,3118.4,3117.5,2.4566]
[1720587440548,1.34246955,3118.5,3117.2,2.848]
[1720587440549,1.24178433,3118.3,3117.2,2.848]
[1720587440748,1.00685216,3118.1,3117.2,2.848]
[1720587441187,1.00685216,3118.1,3116.8,2.848]
[1720587441413,1.00685216,3118.0,3116.8,2.848]
[1720587441908,1.00685216,3117.9,3116.8,2.848]
[1720587442078,1.24178433,3117.9,3116.8,2.848]
[1720587442280,0.23493217,3117.9,3116.8,2.848]
[1720587442491,1.00685216,3118.0,3116.8,2.848]
[1720587444471,3.76416955,3118.2,3116.8,2.848]
[1720587444472,1.00685216,3118.1,3116.8,2.848]
[1720587445165,1.00685216,3118.1,3116.8,5.41473]
[1720587445405,1.00685216,3118.2,3117.2,2.3781]
[1720587445605,4.15078282,3118.5,3117.2,2.3781]
[1720587445606,3.48095216,3118.5,3117.2,7.79244]
[1720587445808,0.48234217,3118.4,3117.2,7.79244]
[1720587447427,3.48095216,3118.5,3117.2,7.79244]
[1720587447428,3.48095216,3118.5,3117.3,2.56629]
[1720587447627,3.48095216,3118.5,3117.4,2.3781]
[1720587447628,1.00685216,3118.5,3117.4,2.3781]
[1720587447782,1.00685216,3118.6,3117.4,2.3781]
[1720587447985,0.23493217,3118.5,3117.4,2.3781]
[1720587448385,1.00685216,3118.6,3117.4,2.3781]
[1720587448636,1.00408554,3118.7,3117.9,5.13163]
[1720587448926,1.00408554,3118.7,3117.5,2.3173]
[1720587448927,1.00354658,3120.7,3120.6,5.1272]
[1720587449091,1.67257764,3121.0,3120.6,5.1272]
[1720587449092,1.00354658,3121.1,3120.6,4.88686817]
[1720587449280,3.0,3123.2,3120.6,4.88686817]
[1720587449281,0.27686644,3121.8,3120.7,2.62751599]
[1720587449480,3.1836373,3123.0,3120.6,3.0]
[1720587449710,1.1101654,3122.7,3120.6,2.848]
[1720587449922,1.46558194,3122.6,3120.6,2.848]
[1720587450100,1.1101654,3122.5,3120.7,2.6275891]
[1720587450430,1.1101654,3122.4,3121.0,2.848]
[1720587450582,1.11011869,3122.3,3121.0,2.848]
[1720587450778,0.35541654,3122.6,3121.0,2.848]
[1720587450989,1.11011822,3122.5,3121.0,2.848]
[1720587451188,1.11011822,3122.4,3121.0,2.848]
[1720587451388,0.35541654,3122.6,3121.0,2.848]
[1720587451622,1.11006587,3122.5,3121.0,2.848]
[1720587451834,0.35541654,3122.6,3121.0,2.848]
[1720587452032,1.11010235,3122.5,3121.0,2.848]
[1720587452185,0.35541654,3122.6,3121.0,2.848]
[1720587452389,0.33554165,3122.5,3121.0,2.848]
[1720587453032,0.33554165,3122.5,3121.0,2.91207492]
[1720587454092,0.33554165,3122.5,3121.0,2.848]
[1720587455109,0.55,3122.4,3120.4,2.848]
[1720587455498,1.3097564,3122.3,3120.4,5.41176]
[1720587455831,0.55,3122.2,3120.4,5.41176]
[1720587456327,0.19957255,3122.3,3120.8,5.41136]
[1720587456489,3.0,3122.5,3120.9,0.06407372]
[1720587456692,0.35541654,3122.6,3120.8,5.47543372]
[1720587456890,0.91910402,3122.5,3120.9,2.56332]
[1720587457525,0.91910402,3122.5,3121.0,2.56327]
[1720587457729,0.36910402,3122.5,3121.2,2.848]
[1720587457931,0.35541654,3122.6,3121.3,0.06406219]
[1720587458138,10.09562824,3123.3,3121.8,2.5626]
[1720587458139,9.9323,3123.3,3121.8,2.5626]
[1720587458325,2.4723,3123.3,3121.8,2.62665561]
[1720587459233,2.4723,3123.3,3122.0,2.848]
[1720587459437,2.4723,3123.3,3122.0,5.41045]
[1720587459941,0.33562563,3123.6,3122.1,2.62638376]
[1720587460597,0.33562563,3123.6,3122.1,2.56233]
[1720587460798,0.33562563,3123.6,3122.1,2.62637881]
[1720587461208,0.33562563,3123.6,3122.1,2.56233]
[1720587461433,0.33562563,3123.6,3122.1,2.62637881]
[1720587461906,3.0,3123.8,3122.1,2.62637881]
[1720587462107,0.54723,3123.7,3122.1,2.62637881]
[1720587462330,5.4723,3123.9,3122.2,2.56229]
[1720587462331,3.0,3123.8,3122.2,2.56229]
[1720587462607,3.0,3123.9,3122.4,5.41005]
[1720587462927,7.5733201,3124.1,3122.5,2.56202]
[1720587463135,0.1133201,3124.1,3122.6,0.06404163]
[1720587463334,0.1133201,3124.1,3122.8,2.848]
[1720587463543,0.1133201,3124.1,3122.8,5.40978]
[1720587464846,0.1133201,3124.1,3122.4,2.848]
[1720587465025,0.55,3124.0,3122.5,3.0]
[1720587466421,0.1133201,3124.1,3122.7,2.56184]
[1720587466626,0.42465211,3124.1,3122.7,2.56184]
[1720587468358,0.42465211,3124.1,3122.5,5.56204]
[1720587468564,0.42465211,3124.1,3122.5,3.0]
[1720587469326,0.55,3124.0,3122.5,3.0]
[1720587470846,0.42465211,3124.1,3122.6,2.62600122]
[1720587471446,0.42465211,3124.1,3122.8,5.40978]
[1720587472476,0.42465211,3124.1,3122.8,7.80818]
[1720587473162,0.42465211,3124.1,3122.9,2.56171]
[1720587473350,0.1133201,3124.1,3122.9,2.62574117]
[1720587474587,0.1133201,3124.1,3123.0,2.56163]
[1720587476982,0.1133201,3124.1,3123.1,0.06402888]
[1720587477164,0.1133201,3124.1,3123.2,5.40941]
[1720587477371,3.0,3124.8,3123.3,0.06402517]
[1720587477556,1.29153,3124.7,3123.3,0.06402517]
[1720587477752,3.0,3124.8,3123.3,0.06402517]
[1720587477959,2.4553,3124.9,3123.2,5.40941]
[1720587478156,1.10926868,3124.8,3123.2,5.40941]
[1720587478394,1.10926868,3124.8,3123.2,2.848]
[1720587478395,3.0,3124.8,3123.2,2.848]
[1720587478555,3.0,3124.8,3122.3,7.62921513]
[1720587478556,2.2616,3124.6,3122.3,12.5065]
[1720587478754,1.10932007,3124.5,3122.5,2.56198]
[1720587478967,4.95396508,3124.5,3122.5,2.56198]
[1720587479176,4.10932007,3124.4,3122.5,2.56198]
[1720587479387,1.65932007,3124.3,3122.5,2.56198]
[1720587479550,1.10932007,3124.2,3122.5,2.56198]
[1720587479754,0.16593201,3124.1,3122.6,2.56194]
[1720587480310,3.44664501,3124.5,3122.8,2.56173]
[1720587480499,1.10939228,3124.4,3122.8,2.56173]
[1720587480651,3.44664501,3124.5,3122.8,2.56173]
[1720587480856,1.10938718,3124.4,3122.8,2.56173]
[1720587481086,0.45560322,3124.3,3122.8,2.56173]
[1720587482287,0.45560322,3124.3,3122.9,2.56171]
[1720587482683,0.45560322,3124.3,3122.7,5.47388135]